bitfinex/quotes_SOLUSD_20250514
["timestamp","ask_amount","ask_price","bid_price","bid_amount"]
[1747224590456,12.13774236,181.0,180.94,18.38]
[1747224591173,13.80910296,181.04,180.94,23.90667249]
[1747224591376,12.13774236,181.01,180.94,23.90667249]
[1747224591874,12.13774236,181.02,180.94,23.90667249]
[1747224594048,5.52333609,181.05,180.97,26.0]
[1747224594247,17.66107845,181.05,180.98,1.5003]
[1747224595162,5.5239463,181.03,180.98,1.5003]
[1747224595471,17.66168866,181.03,180.98,1.5003]
[1747224595972,5.5239463,181.03,180.98,1.5003]
[1747224597877,17.66168866,181.03,180.98,1.5003]
[1747224598892,17.66168866,181.03,180.98,7.02574526]
[1747224599179,5.5239463,181.03,180.98,7.02574526]
[1747224599766,5.5239463,181.03,180.98,1.5003]
[1747224600461,17.66168866,181.03,180.98,1.5003]
[1747224600664,12.13774236,181.01,180.97,26.0]
[1747224600884,12.13774236,181.01,180.97,44.36]
[1747224601381,12.13774236,181.01,180.97,26.0]
[1747224602469,13.8086238,181.05,180.97,26.0]
[1747224602659,12.13774236,181.01,180.97,26.0]
[1747224602980,12.13774236,181.03,180.97,31.52576253]
[1747224603191,12.13774236,181.03,180.97,26.0]
[1747224604469,17.661926,181.03,180.97,31.52574991]
[1747224604892,12.13774236,181.02,180.97,26.0]
[1747224605981,17.66220265,181.02,180.97,26.0]
[1747224606288,5.52446029,181.02,180.97,49.88574597]
[1747224606683,5.52402371,181.03,180.97,49.88574597]
[1747224606868,17.66176607,181.03,180.97,49.88574597]
[1747224607060,12.13774236,181.04,180.98,0.28432314]
[1747224608482,17.66154798,181.04,180.98,5.80972569]
[1747224608685,12.13774236,181.03,180.98,0.28432314]
[1747224609073,17.66154798,181.04,180.98,5.80974108]
[1747224612094,12.13774236,181.04,180.98,5.80974108]
[1747224612592,5.52357977,181.05,180.98,5.80974108]
[1747224612794,12.13774236,181.03,180.98,5.80974108]
[1747224613593,12.13774236,181.04,180.98,5.80974108]
[1747224614373,12.13774236,181.05,180.98,12.10244108]
[1747224614696,12.13774236,181.05,180.99,1.5055]
[1747224614869,5.52211607,181.09,181.0,0.28432314]
[1747224615067,5.52211607,181.09,181.02,0.28432314]
[1747224615272,17.65985843,181.09,181.03,18.36]
[1747224615764,5.52211607,181.09,181.02,26.28432314]
[1747224616402,5.52171122,181.11,181.05,1.631]
[1747224616570,5.52119161,181.13,181.06,26.28432314]
[1747224616900,17.65893397,181.13,181.06,26.28432314]
[1747224617668,13.80047498,181.16,181.06,26.28432314]
[1747224617669,12.13774236,181.12,181.06,31.80730272]
[1747224618692,12.13774236,181.14,181.06,31.80730272]
[1747224619102,12.13774236,181.14,181.06,36.29899965]
[1747224619275,13.80047498,181.16,181.06,36.29899965]
[1747224619474,5.51937299,181.18,181.06,36.29899965]
[1747224619679,5.51845924,181.21,181.09,31.52211607]
[1747224619879,12.13774236,181.18,181.1,0.28432314]
[1747224620107,12.13774236,181.17,181.1,0.28432314]
[1747224620473,5.51845924,181.21,181.1,0.28432314]
[1747224620678,12.13774236,181.17,181.12,26.0]
[1747224621100,5.51876379,181.2,181.1,0.28432314]
[1747224621312,12.13774236,181.18,181.1,0.28432314]
[1747224621990,12.13774236,181.18,181.13,26.0]
[1747224622385,5.51876379,181.2,181.13,26.0]
[1747224622729,12.13774236,181.19,181.13,26.0]
[1747224623209,5.51937299,181.18,181.13,0.28432314]
[1747224623806,5.51937299,181.18,181.13,26.28432314]
[1747224624115,17.65711535,181.18,181.13,26.28432314]
[1747224624691,5.51937299,181.18,181.13,26.28432314]
[1747224624895,17.65711535,181.18,181.13,26.28432314]
[1747224625101,17.65711535,181.18,181.1,0.28432314]
[1747224626115,17.65711535,181.18,181.13,26.0]
[1747224626296,5.51937299,181.18,181.13,26.0]
[1747224626922,5.51937299,181.18,181.14,1.5021]
[1747224629501,5.51906838,181.19,181.14,1.5021]
[1747224630098,19.31163282,181.24,181.17,26.0]
[1747224630497,5.51754579,181.24,181.18,0.28432314]
[1747224631487,5.51724137,181.25,181.18,0.28432314]
[1747224631916,17.65498373,181.25,181.18,0.28432314]
[1747224632485,17.65498373,181.25,181.16,0.28432314]
[1747224632713,5.51602404,181.29,181.2,26.0]
[1747224632911,12.13774236,181.27,181.21,0.28432314]
[1747224633093,12.13774236,181.26,181.21,0.28432314]
[1747224633516,5.51602404,181.29,181.21,0.28432314]
[1747224633717,12.13774236,181.26,181.21,0.28432314]
[1747224633914,17.65498373,181.25,181.2,26.0]
[1747224634089,12.13774236,181.24,181.2,26.0]
[1747224634285,17.65498373,181.25,181.2,26.0]
[1747224634521,5.51724137,181.25,181.2,26.0]
[1747224635814,5.51698056,181.26,181.21,0.28432314]
[1747224636021,12.13774236,181.28,181.21,0.28432314]
[1747224636311,12.13774236,181.28,181.23,0.28432314]
[1747224636817,12.13774236,181.29,181.23,0.28432314]
[1747224637019,13.7897037,181.3,181.23,0.28432314]
[1747224637196,12.13774236,181.28,181.23,0.28432314]
[1747224637398,5.51663264,181.27,181.23,0.28432314]
[1747224638041,13.78715272,181.33,181.23,0.28432314]
[1747224638214,12.13774236,181.32,181.25,0.28432314]
[1747224638415,12.13774236,181.32,181.26,26.0]
[1747224639293,12.13774236,181.31,181.26,26.0]
[1747224639597,5.5157198,181.3,181.26,26.0]
[1747224640015,5.5157198,181.3,181.25,0.28432314]
[1747224640616,5.5157198,181.3,181.26,26.0]
[1747224641338,5.5157198,181.3,181.25,0.28432314]
[1747224642718,5.51480725,181.33,181.25,5.80151695]
[1747224643027,12.13774236,181.31,181.25,0.28432314]
[1747224644325,5.5157198,181.3,181.25,5.8015194]
[1747224644827,12.13774236,181.32,181.25,5.8015194]
[1747224646337,12.13774236,181.31,181.25,0.28432314]
[1747224647346,12.13774236,181.31,181.25,5.80152966]
[1747224647936,12.13774236,181.31,181.25,0.28432314]
[1747224648243,5.51531838,181.32,181.25,5.80127423]
[1747224648402,17.65306074,181.32,181.25,5.80127423]
[1747224648823,12.13774236,181.32,181.25,5.80127423]
[1747224649206,5.51419906,181.35,181.25,5.80127423]
[1747224649207,12.13774236,181.36,181.29,0.28432314]
[1747224649436,12.13774236,181.37,181.3,1.6615]
[1747224650031,5.51328702,181.38,181.3,1.6615]
[1747224650032,12.13774236,181.38,181.31,0.28432314]
[1747224650245,12.13774236,181.41,181.33,0.28432314]
[1747224650798,12.13774236,181.39,181.33,0.28432314]
[1747224650998,5.51207143,181.42,181.32,32.225]
[1747224651314,12.13774236,181.39,181.32,32.225]
[1747224651519,12.13774236,181.4,181.32,32.225]
[1747224652321,5.51298307,181.39,181.32,32.225]
[1747224652835,17.65072543,181.39,181.32,32.225]
[1747224655025,17.65072543,181.39,181.32,37.74010598]
[1747224657730,12.13774236,181.41,181.33,24.44875728]
[1747224658051,5.51207143,181.42,181.36,26.0]
[1747224658052,17.64981379,181.42,181.36,26.0]
[1747224658234,12.13774236,181.41,181.36,26.0]
[1747224659142,17.65031794,181.41,181.36,26.0]
[1747224659458,5.51116009,181.45,181.36,31.51379422]
[1747224659659,12.13774236,181.42,181.37,1.6231]
[1747224659954,5.51116009,181.45,181.38,18.64964886]
[1747224660160,17.64869701,181.46,181.39,26.0]
[1747224660773,12.13774236,181.45,181.39,26.0]
[1747224661119,17.64869701,181.46,181.39,26.0]
[1747224661341,13.77521931,181.49,181.39,26.0]
[1747224661547,12.13774236,181.46,181.39,26.0]
[1747224661723,5.50964187,181.5,181.41,26.0]
[1747224661924,12.13774236,181.46,181.41,26.0]
[1747224662729,12.13774236,181.45,181.4,6.3331]
[1747224662933,12.13774236,181.44,181.39,26.0]
[1747224663225,19.28374655,181.5,181.4,18.933972]
[1747224663226,13.77410468,181.5,181.4,18.933972]
[1747224663437,12.13774236,181.49,181.4,18.933972]
[1747224663627,12.13774236,181.5,181.44,1.5781]
[1747224664350,5.50903481,181.52,181.44,1.5781]
[1747224664657,17.64763129,181.5,181.44,1.5781]
[1747224664958,12.13774236,181.49,181.44,1.5781]
[1747224665262,17.6471788,181.51,181.44,7.08938448]
[1747224665445,5.50812448,181.55,181.46,26.0]
[1747224665634,12.13774236,181.53,181.46,26.0]
[1747224665826,12.13774236,181.52,181.44,7.08938448]
[1747224666026,12.13774236,181.48,181.44,1.5781]
[1747224666225,12.13774236,181.47,181.44,1.5781]
[1747224666438,12.13774236,181.46,181.44,1.5781]
[1747224666660,17.64866691,181.46,181.44,1.5781]
[1747224666961,17.64866691,181.46,181.4,27.5399]
[1747224666962,12.13774236,181.45,181.4,27.5399]
[1747224667161,5.51092455,181.46,181.4,27.5399]
[1747224667466,12.13774236,181.45,181.4,27.5399]
[1747224667653,12.13774236,181.41,181.34,6.4006]
[1747224667947,12.13774236,181.41,181.37,26.0]
[1747224668738,12.13774236,181.38,181.35,1.5399]
[1747224669051,12.13774236,181.36,181.33,26.0]
[1747224670129,5.51419906,181.35,181.33,26.0]
[1747224670525,12.13774236,181.34,181.3,1.5703]
[1747224670721,19.29118667,181.43,181.3,1.5703]
[1747224670922,19.29118667,181.43,181.33,18.79181043]
[1747224671151,12.13774236,181.41,181.32,26.14216157]
[1747224671358,12.13774236,181.39,181.34,26.0]
[1747224671863,12.13774236,181.4,181.34,26.0]
[1747224672229,5.51298307,181.39,181.34,26.0]
[1747224672551,12.13774236,181.42,181.35,18.79181043]
[1747224673554,12.13774236,181.42,181.35,24.30575193]
[1747224673555,17.64990389,181.42,181.35,24.30575193]
[1747224674757,5.5105527,181.47,181.39,1.6487]
[1747224674943,17.64829506,181.47,181.39,1.6487]
[1747224675147,5.5105527,181.47,181.39,1.6487]
[1747224675343,12.13774236,181.49,181.41,26.0]
[1747224675864,5.51024906,181.48,181.41,31.51234228]
[1747224676257,5.51024906,181.48,181.41,26.0]
[1747224677851,5.51024906,181.48,181.39,27.6487]
[1747224678058,12.13774236,181.46,181.39,27.6487]
[1747224678238,12.13774236,181.47,181.39,33.16160343]
[1747224678560,5.51024906,181.48,181.4,18.64964886]
[1747224678748,17.64799142,181.48,181.4,18.64964886]
[1747224679147,17.64775281,181.49,181.43,26.0]
[1747224679332,5.51001045,181.49,181.43,26.0]
[1747224679762,17.64775281,181.49,181.43,31.5117563]
[1747224679963,17.64742894,181.5,181.43,31.5117563]
[1747224680164,17.64710112,181.51,181.44,18.933972]
[1747224680565,12.13774236,181.51,181.44,18.933972]
[1747224681773,12.13774236,181.51,181.45,5.51116009]
[1747224681960,5.5078211,181.56,181.46,26.0]
[1747224682269,12.13774236,181.53,181.46,26.0]
[1747224683054,12.13774236,181.53,181.47,31.5105527]
[1747224683573,5.50849324,181.54,181.47,31.5105527]
[1747224683866,5.50811852,181.56,181.47,33.0193527]
[1747224684070,17.64586088,181.56,181.48,18.933972]
[1747224684869,5.50811852,181.56,181.48,18.933972]
[1747224685065,12.13774236,181.56,181.49,5.50994545]
[1747224685457,12.13774236,181.55,181.49,5.50994545]
[1747224685657,12.13774236,181.55,181.48,24.44413681]
[1747224686270,12.13774236,181.56,181.51,26.0]
[1747224687276,17.6455553,181.57,181.51,31.50930933]
[1747224687460,17.6455553,181.57,181.51,26.0]
[1747224688779,5.50812448,181.55,181.51,26.0]
[1747224688956,12.13774236,181.54,181.47,1.5088]
[1747224689165,12.13774236,181.53,181.47,1.5088]
[1747224689375,12.13774236,181.53,181.49,26.0]
[1747224690373,12.13774236,181.52,181.47,27.5088]
[1747224690690,5.50933832,181.51,181.47,27.5088]
[1747224690856,5.50933832,181.51,181.47,1.5088]
[1747224691059,5.50933832,181.51,181.47,27.5088]
[1747224694488,12.13774236,181.48,181.43,8.0787]
[1747224694783,5.50933832,181.51,181.43,8.0787]
[1747224694784,12.13774236,181.47,181.43,8.0787]
[1747224694984,12.13774236,181.47,181.43,1.636]
[1747224696390,5.51085638,181.46,181.43,1.636]
[1747224696562,5.51058115,181.47,181.43,1.636]
[1747224698388,12.13774236,181.48,181.43,1.636]
[1747224698389,17.64807957,181.48,181.43,1.636]
[1747224698594,5.51033721,181.48,181.43,1.636]
[1747224698795,17.64807957,181.48,181.43,1.636]
[1747224700091,12.13774236,181.48,181.43,7.14775628]
[1747224700592,12.13774236,181.49,181.43,7.14775628]
[1747224701077,12.13774236,181.5,181.43,7.14775628]
[1747224701278,5.50873133,181.53,181.43,7.14775628]
[1747224701483,12.13774236,181.5,181.43,7.14775628]
[1747224702367,12.13774236,181.5,181.44,26.0]
[1747224703868,17.647436,181.5,181.44,26.0]
[1747224704190,17.647436,181.5,181.44,31.51120213]
[1747224704490,12.13774236,181.5,181.44,31.51120213]
[1747224704792,17.64745999,181.5,181.44,31.51120213]
[1747224704976,12.13774236,181.5,181.44,31.51120213]
[1747224705382,5.50873133,181.53,181.44,31.51120213]
[1747224705586,12.13774236,181.51,181.44,31.51120213]
[1747224707596,12.13774236,181.5,181.44,31.51120213]
[1747224708600,17.6474071,181.5,181.44,31.51120213]
[1747224709283,12.13774236,181.5,181.44,31.51120213]
[1747224709908,17.64745003,181.5,181.44,31.51120213]
[1747224710872,12.13774236,181.46,181.43,1.636]
[1747224711202,12.13774236,181.45,181.43,1.636]
[1747224711505,12.13774236,181.45,181.42,26.0]
[1747224712908,5.51146384,181.44,181.42,26.0]
[1747224713108,5.51146384,181.44,181.39,7.8534]
[1747224713109,12.13774236,181.43,181.39,1.6105]
[1747224713303,12.13774236,181.41,181.38,26.0]
[1747224713502,12.13774236,181.4,181.36,26.0]
[1747224714186,19.29012345,181.44,181.36,26.0]
[1747224714494,12.13774236,181.41,181.36,26.0]
[1747224715413,12.13774236,181.42,181.36,31.51374869]
[1747224718620,12.13774236,181.45,181.37,18.933972]
[1747224718990,12.13774236,181.44,181.37,18.933972]
[1747224719995,17.64937055,181.44,181.38,5.51328702]
[1747224720923,17.64937055,181.44,181.37,24.44753987]
[1747224722198,12.13774236,181.43,181.37,24.44753987]
[1747224722393,12.13774236,181.42,181.36,44.64964886]
[1747224722699,12.13774236,181.41,181.36,26.0]
[1747224723818,17.65040412,181.41,181.36,26.0]
[1747224727331,5.51266176,181.41,181.36,31.51386571]
[1747224727710,5.51266176,181.41,181.36,26.0]
[1747224727915,17.65040412,181.41,181.36,26.0]
[1747224735437,17.65040412,181.41,181.37,26.0]
[1747224735638,5.51266176,181.41,181.37,26.0]
[1747224741436,17.65040412,181.41,181.37,26.0]
[1747224742146,12.13774236,181.38,181.31,1.6059]
[1747224742439,12.13774236,181.37,181.31,1.6059]
[1747224742619,12.13774236,181.37,181.33,26.0]
[1747224743035,5.51389501,181.36,181.33,26.0]
[1747224744060,12.13774236,181.34,181.27,1.63]
[1747224744356,12.13774236,181.33,181.27,27.63]
[1747224744563,12.13774236,181.34,181.27,27.63]
[1747224744748,12.13774236,181.33,181.27,27.63]
[1747224745146,5.5151114,181.32,181.27,27.63]
[1747224746759,17.65285376,181.32,181.27,27.63]
[1747224747152,17.65241599,181.34,181.27,33.1466139]
[1747224747937,12.13774236,181.34,181.27,33.1466139]
[1747224748561,17.65226413,181.34,181.27,33.1466139]
[1747224753264,12.13774236,181.34,181.27,33.1466139]
[1747224754658,17.65226795,181.34,181.27,33.1466139]
[1747224756270,5.51328702,181.38,181.27,33.1466139]
[1747224756440,12.13774236,181.4,181.33,6.638]
[1747224756645,12.13774236,181.42,181.33,6.638]
[1747224756845,12.13774236,181.4,181.34,0.39855072]
[1747224757151,12.13774236,181.39,181.34,0.39855072]
[1747224757363,12.13774236,181.38,181.34,0.39855072]
[1747224757850,45.29118667,181.43,181.34,0.39855072]
[1747224758056,12.13774236,181.38,181.34,0.39855072]
[1747224758866,13.78164057,181.41,181.34,0.39855072]
[1747224759068,5.51207143,181.42,181.34,5.91303821]
[1747224759448,12.13774236,181.44,181.37,26.0]
[1747224759948,12.13774236,181.45,181.37,26.0]
[1747224760146,12.13774236,181.43,181.38,1.5001]
[1747224760542,12.13774236,181.42,181.38,1.5001]
[1747224760742,17.65067632,181.4,181.38,1.5001]
[1747224761046,17.64987524,181.42,181.38,1.5001]
[1747224761374,12.13774236,181.41,181.38,1.5001]
[1747224761956,12.13774236,181.41,181.35,32.1149]
[1747224762370,12.13774236,181.41,181.35,37.62906462]
[1747224763471,17.65020718,181.41,181.35,37.62906462]
[1747224763858,17.65020718,181.41,181.35,32.1149]
[1747224764349,12.13774236,181.4,181.35,32.1149]
[1747224764549,17.65020718,181.41,181.35,32.1149]
[1747224765678,12.13774236,181.4,181.35,32.1149]
[1747224766872,12.13774236,181.4,181.35,6.1149]
[1747224767074,12.13774236,181.41,181.35,6.1149]
[1747224767269,12.13774236,181.42,181.35,6.1149]
[1747224767446,13.77914818,181.44,181.35,11.62909179]
[1747224767649,12.13774236,181.42,181.35,11.62909179]
[1747224767870,17.64983353,181.42,181.35,11.62909179]
[1747224768453,12.13774236,181.36,181.3,1.5995]
[1747224768661,12.13774236,181.34,181.3,1.5995]
[1747224769063,0.28432314,181.41,181.3,1.5995]
[1747224769064,18.933972,181.41,181.3,1.5995]
[1747224769258,12.13774236,181.38,181.3,1.5995]
[1747224769667,12.13774236,181.4,181.31,44.64964886]
[1747224769872,17.65072543,181.39,181.31,50.1649218]
[1747224770372,17.65072543,181.39,181.34,26.0]
[1747224771777,17.65016377,181.41,181.34,1.6235]
[1747224772880,17.65016377,181.41,181.34,7.13777163]
[1747224773785,5.51242141,181.41,181.34,7.13777163]
[1747224773971,19.28942045,181.45,181.34,7.13777163]
[1747224774165,12.13774236,181.42,181.34,7.13777163]
[1747224774566,19.28942045,181.45,181.34,7.13777163]
[1747224774782,12.13774236,181.42,181.34,7.13777163]
[1747224775173,17.65007237,181.42,181.34,7.13777163]
[1747224776388,17.65007237,181.42,181.36,5.51389501]
[1747224776884,5.51233001,181.42,181.36,5.51389501]
[1747224778084,12.13774236,181.42,181.36,5.51389501]
[1747224778385,5.51116009,181.45,181.37,26.0]
[1747224778558,12.13774236,181.44,181.37,26.0]
[1747224778980,5.51116009,181.45,181.39,26.0]
[1747224779169,12.13774236,181.44,181.39,26.0]
[1747224779370,17.64939936,181.44,181.39,26.0]
[1747224779589,5.511657,181.44,181.39,26.0]
[1747224780768,5.50994545,181.49,181.42,26.0]
[1747224780967,12.13774236,181.48,181.42,26.0]
[1747224781272,12.13774236,181.46,181.4,27.644]
[1747224781588,12.13774236,181.45,181.4,27.644]
[1747224782365,19.28480907,181.49,181.4,1.644]
[1747224782366,12.13774236,181.42,181.4,1.644]
[1747224782802,17.65005949,181.42,181.4,1.644]
[1747224783895,5.51231713,181.42,181.4,1.644]
[1747224786372,17.65005949,181.42,181.4,1.644]
[1747224786880,17.64959948,181.43,181.4,1.644]
[1747224787076,12.13774236,181.45,181.4,1.644]
[1747224788110,12.13774236,181.46,181.4,33.15664325]
[1747224788803,12.13774236,181.47,181.4,33.15664325]
[1747224788995,17.6483581,181.47,181.4,33.15664325]
[1747224789196,12.13774236,181.48,181.4,33.15664325]
[1747224790209,12.13774236,181.46,181.4,27.644]
[1747224790422,12.13774236,181.45,181.4,27.644]
[1747224791097,5.51146384,181.44,181.4,27.644]
[1747224791733,17.64826572,181.48,181.4,33.1566112]
[1747224791920,12.13774236,181.47,181.4,33.1566112]
[1747224792696,17.64846696,181.47,181.4,33.1566112]
[1747224792912,12.13774236,181.46,181.4,33.1566112]
[1747224793123,12.13774236,181.46,181.4,27.644]
[1747224794837,17.64876958,181.46,181.4,33.15664703]
[1747224796048,17.64876958,181.46,181.4,27.644]
[1747224796236,12.13774236,181.44,181.4,27.644]
[1747224796437,5.51102722,181.46,181.4,27.644]
[1747224796733,12.13774236,181.45,181.4,27.644]
[1747224797122,12.13774236,181.44,181.4,27.644]
[1747224797832,12.13774236,181.45,181.4,27.644]
[1747224798421,12.13774236,181.45,181.4,33.15664855]
[1747224798626,17.64876958,181.46,181.4,33.15664855]
[1747224799931,38.21559385,181.52,181.4,33.15664855]
[1747224800127,12.13774236,181.46,181.4,33.15664855]
[1747224800350,12.13774236,181.46,181.4,27.644]
[1747224801750,12.13774236,181.45,181.4,27.644]
[1747224802135,5.51146384,181.44,181.4,27.644]
[1747224802855,12.13774236,181.42,181.4,1.644]
[1747224803060,12.13774236,181.42,181.36,7.09681943]
[1747224803258,12.13774236,181.42,181.39,26.0]
[1747224803964,17.65004685,181.42,181.39,26.0]
[1747224804365,12.13774236,181.41,181.36,27.583]
[1747224804667,12.13774236,181.41,181.36,1.583]
[1747224804845,12.13774236,181.41,181.36,27.583]
[1747224806053,5.51267916,181.4,181.36,27.583]
[1747224806255,17.65042152,181.4,181.36,27.583]
[1747224806457,5.51267916,181.4,181.36,27.583]
[1747224806976,17.65019164,181.41,181.36,33.09681949]
[1747224808175,17.65001363,181.42,181.36,33.09681949]
[1747224808980,12.13774236,181.41,181.36,33.09681949]
[1747224810578,17.65012743,181.41,181.36,33.09681949]
[1747224811074,12.13774236,181.4,181.36,27.583]
[1747224811479,12.13774236,181.4,181.37,26.0]
[1747224812865,17.6505123,181.4,181.37,26.0]
[1747224813957,5.51276994,181.4,181.37,26.0]
[1747224815082,13.77855454,181.45,181.37,26.0]
[1747224815383,12.13774236,181.41,181.37,26.0]
[1747224816192,17.65032809,181.41,181.37,26.0]
[1747224816878,12.13774236,181.41,181.37,26.0]
[1747224817386,5.51242373,181.41,181.37,26.0]
[1747224818377,17.65016609,181.41,181.37,26.0]
[1747224819077,12.13774236,181.38,181.31,8.0528]
[1747224819283,12.13774236,181.37,181.31,1.6256]
[1747224819484,12.13774236,181.36,181.31,1.6256]
[1747224819663,12.13774236,181.36,181.33,26.0]
[1747224820679,17.65176296,181.36,181.33,26.0]
[1747224821674,17.6513916,181.37,181.33,26.0]
[1747224823574,12.13774236,181.36,181.31,1.6256]
[1747224823773,12.13774236,181.35,181.3,26.0]
[1747224823969,12.13774236,181.35,181.31,26.0]
[1747224824571,5.51364924,181.37,181.27,26.718472]
[1747224824572,12.13774236,181.33,181.27,1.5608]
[1747224824892,12.13774236,181.33,181.29,26.0]
[1747224825066,12.13774236,181.32,181.29,26.0]
[1747224825266,17.65295354,181.32,181.29,26.0]
[1747224826494,13.7839775,181.37,181.29,26.0]
[1747224826682,12.13774236,181.32,181.29,26.0]
[1747224827593,12.13774236,181.33,181.27,33.07734605]
[1747224828394,5.5151114,181.32,181.27,33.07734605]
[1747224830196,5.5151114,181.32,181.29,26.0]
[1747224831093,5.5151114,181.32,181.27,27.5608]
[1747224831297,5.5151114,181.32,181.27,33.07741198]
[1747224832014,12.13774236,181.33,181.27,33.07741198]
[1747224833001,35.30908492,181.4,181.27,33.07741198]
[1747224833002,12.13774236,181.35,181.28,18.79181043]
[1747224834908,12.13774236,181.34,181.28,24.30784279]
[1747224836175,17.65226501,181.34,181.28,24.30784279]
[1747224837420,19.29544075,181.39,181.28,24.30784279]
[1747224837597,12.13774236,181.34,181.28,24.30784279]
[1747224839522,17.65227787,181.34,181.28,24.30784279]
[1747224841422,12.13774236,181.34,181.28,24.30784279]
[1747224841788,17.65224976,181.34,181.28,24.30784279]
[1747224842514,17.65201873,181.35,181.28,24.30784279]
[1747224844634,12.13774236,181.33,181.27,33.21952218]
[1747224844921,12.13774236,181.32,181.27,27.5608]
[1747224845819,12.13774236,181.32,181.28,26.0]
[1747224846897,12.13774236,181.33,181.28,26.0]
[1747224848726,12.13774236,181.33,181.28,31.51613973]
[1747224848905,19.29544075,181.39,181.28,31.51613973]
[1747224848906,12.13774236,181.35,181.28,31.51613973]
[1747224849226,19.29544075,181.39,181.28,31.51613973]
[1747224849227,12.13774236,181.36,181.28,31.51613973]
[1747224850099,27.55188029,181.48,181.33,18.64964886]
[1747224850305,8.1144,181.49,181.37,44.64964886]
[1747224850509,8.1144,181.49,181.38,0.28432314]
[1747224850510,12.13774236,181.47,181.38,0.28432314]
[1747224850909,5.51024906,181.48,181.38,0.28432314]
[1747224851326,12.13774236,181.47,181.38,0.28432314]
[1747224851620,12.13774236,181.46,181.38,0.28432314]
[1747224852034,12.13774236,181.46,181.39,5.51298307]
[1747224853431,17.64860295,181.46,181.39,5.51298307]
[1747224857724,12.13774236,181.45,181.39,5.51298307]
[1747224858423,12.13774236,181.44,181.38,5.51321101]
[1747224859237,12.13774236,181.44,181.37,38.00856391]
[1747224859410,12.13774236,181.43,181.37,38.00856391]
[1747224859908,19.28587171,181.48,181.37,38.00856391]
[1747224859909,12.13774236,181.42,181.37,38.00856391]
[1747224860207,12.13774236,181.43,181.37,38.00856391]
[1747224861938,17.64958016,181.43,181.37,38.00856391]
[1747224862942,12.13774236,181.43,181.37,38.00856391]
[1747224864323,17.6495316,181.43,181.37,38.00856391]
[1747224864725,12.13774236,181.42,181.37,26.0]
[1747224865833,12.13774236,181.42,181.39,26.0]
[1747224866224,17.65010327,181.42,181.39,26.0]
[1747224866434,12.13774236,181.4,181.37,26.0]
[1747224866636,12.13774236,181.39,181.37,26.0]
[1747224866862,12.13774236,181.39,181.36,1.595]
[1747224867147,12.13774236,181.39,181.36,27.595]
[1747224867365,5.51236091,181.42,181.32,1.5774]
[1747224867366,12.13774236,181.37,181.32,1.5774]
[1747224867554,12.13774236,181.36,181.32,1.5774]
[1747224867735,12.13774236,181.36,181.32,27.5774]
[1747224868453,17.65174994,181.36,181.33,26.0]
[1747224870542,13.78208326,181.4,181.33,26.0]
[1747224870743,12.13774236,181.36,181.33,26.0]
[1747224872373,17.65179485,181.36,181.33,26.0]
[1747224872666,5.51298307,181.39,181.33,26.0]
[1747224872831,12.13774236,181.37,181.33,26.0]
[1747224873748,17.65144963,181.37,181.33,26.0]
[1747224874140,5.51370727,181.37,181.33,26.0]
[1747224874962,12.13774236,181.38,181.33,26.0]
[1747224875141,5.51237528,181.41,181.33,26.0]
[1747224875561,12.13774236,181.39,181.33,26.0]
[1747224876442,17.65079561,181.39,181.33,26.0]
[1747224876644,17.65079561,181.39,181.33,31.5147924]
[1747224876856,17.65079561,181.39,181.33,26.0]
[1747224878047,17.65079561,181.39,181.33,31.51476521]
[1747224878253,5.51305325,181.39,181.33,31.51476521]
[1747224878448,19.29161004,181.43,181.33,31.51476521]
[1747224878648,12.13774236,181.4,181.33,31.51476521]
[1747224879171,19.29161004,181.43,181.33,31.51476521]
[1747224879371,5.51298307,181.39,181.33,31.51476521]
[1747224879549,17.64981379,181.42,181.33,31.51476521]
[1747224886168,12.13774236,181.41,181.33,31.51476521]
[1747224887783,5.51267916,181.4,181.33,31.51476521]
[1747224894282,12.13774236,181.4,181.33,31.51476521]
[1747224896694,5.51298307,181.39,181.33,31.51476521]
[1747224900689,17.65052533,181.4,181.33,31.51476521]
[1747224901386,13.21417502,181.4,181.33,31.51476521]
[1747224902108,5.5124215,181.41,181.34,18.933972]
[1747224902681,7.70139205,181.43,181.37,26.0]
[1747224903685,13.2131908,181.43,181.37,26.0]
[1747224904698,13.2131908,181.43,181.37,31.51352259]
[1747224905092,5.51179875,181.43,181.38,1.6122]
[1747224905297,5.51152506,181.44,181.38,1.6122]
[1747224905824,5.51116009,181.45,181.39,5.51298307]